fUST/lending_fUST_20240729
["ID","MTS","AMOUNT","RATE_DAILY","PERIOD"]
[333514627,1722223860074,-500.0,0.00016228,2]
[333514628,1722223860084,-500.0,0.00016228,2]
[333514629,1722223860094,-500.0,0.00016228,2]
[333514630,1722223860103,-500.0,0.00016228,2]
[333514631,1722223860113,-500.0,0.00016228,2]
[333514632,1722223860124,-484.85087696,0.00016228,2]
[333514633,1722223860134,-500.0,0.00016228,2]
[333514634,1722223860146,-500.0,0.00016228,2]
[333514635,1722223860162,-500.0,0.00016228,2]
[333514636,1722223860173,-677.39,0.00016228,2]
[333514637,1722223860182,-500.0,0.00016228,2]
[333514638,1722223860192,-500.0,0.00016228,2]
[333514639,1722223860202,-500.0,0.00016228,2]
[333514640,1722223860211,-500.0,0.00016228,2]
[333514641,1722223860220,-500.0,0.00016228,2]
[333514642,1722223860229,-596.8,0.00016228,2]
[333514643,1722223860241,-500.0,0.00016228,2]
[333514644,1722223860252,-500.0,0.00016228,2]
[333514645,1722223860261,-458.13617323,0.00016228,2]
[333514646,1722223860271,-500.0,0.00016228,2]
[333514647,1722223860281,-713.0,0.00016228,2]
[333514648,1722223860290,-500.0,0.00016228,2]
[333514649,1722223860300,-500.0,0.00016228,2]
[333514650,1722223860309,-500.0,0.00016228,2]
[333514651,1722223860319,-521.03,0.00016228,2]
[333514652,1722223860329,-500.0,0.00016228,2]
[333514653,1722223860339,-304.54307663,0.00016228,2]
[333514654,1722223860349,-500.0,0.00016228,2]
[333514655,1722223860358,-500.0,0.00016228,2]
[333514656,1722223860367,-500.0,0.00016228,2]
[333514657,1722223860377,-500.0,0.00016228,2]
[333514658,1722223860387,-500.0,0.00016228,2]
[333514659,1722223860397,-501.42,0.00016228,2]
[333514660,1722223860408,-500.0,0.00016228,2]
[333514661,1722223860417,-8758.31,0.00016228,2]
[333514662,1722223860427,-2022.79,0.00016228,2]
[333514663,1722223860436,-2552.05,0.00016228,2]
[333514664,1722223860446,-500.0,0.00016228,2]
[333514665,1722223860455,-500.0,0.00016228,2]
[333514666,1722223860464,-500.0,0.00016228,2]
[333514667,1722223860475,-500.0,0.00016228,2]
[333514668,1722223860484,-996.33,0.00016228,2]
[333514669,1722223860559,-500.0,0.00016228,2]
[333514670,1722223860570,-500.0,0.00016228,2]
[333514671,1722223860580,-500.0,0.00016228,2]
[333514672,1722223860590,-539.42,0.00016228,2]
[333514673,1722223860599,-500.0,0.00016228,2]
[333514674,1722223860609,-503.6796576,0.00016228,2]
[333514675,1722223860618,-573.35,0.00016228,2]
[333514676,1722223860628,-605.06,0.00016228,2]
[333514677,1722223860638,-932.0,0.00016228,2]
[333514678,1722223860647,-500.0,0.00016228,2]
[333514679,1722223860656,-500.0,0.00016228,2]
[333514680,1722223860665,-218.24,0.00016228,2]
[333514681,1722223860674,-500.0,0.00016228,2]
[333514682,1722223860684,-500.0,0.00016228,2]
[333514683,1722223860694,-1432.9,0.00016228,2]
[333514684,1722223860703,-500.0,0.00016228,2]
[333514685,1722223860713,-503.40827002,0.00016228,2]
[333514686,1722223860723,-500.0,0.00016228,2]
[333514687,1722223860733,-500.0,0.00016228,2]
[333514688,1722223860744,-518.07381064,0.00016228,2]
[333514689,1722223860758,-500.0,0.00016228,2]
[333514690,1722223860772,-231.04,0.00016228,2]
[333514691,1722223860782,-500.0,0.00016228,2]
[333514692,1722223860792,-500.0,0.00016228,2]
[333514693,1722223860802,-500.0,0.00016228,2]
[333514694,1722223860813,-500.0,0.00016228,2]
[333514695,1722223860823,-502.08712698,0.00016228,2]
[333514696,1722223860833,-500.0,0.00016228,2]
[333514697,1722223860843,-502.02808241,0.00016228,2]
[333514698,1722223860853,-503.07522859,0.00016228,2]
[333514699,1722223860862,-627.48,0.00016228,2]
[333514700,1722223860872,-500.0,0.00016228,2]
[333514701,1722223860882,-500.0,0.00016228,2]
[333514702,1722223860892,-2389.55,0.00016228,2]
[333514703,1722223860902,-500.0,0.00016228,2]
[333514704,1722223860911,-507.55873567,0.00016228,2]
[333514705,1722223860921,-588.7,0.00016228,2]
[333514706,1722223860931,-512.74,0.00016228,2]
[333514707,1722223860941,-500.0,0.00016228,2]
[333514708,1722223860950,-500.0,0.00016228,2]
[333514709,1722223860960,-500.0,0.00016228,2]
[333514710,1722223860969,-500.0,0.00016228,2]
[333514711,1722223860979,-500.0,0.00016228,2]
[333514712,1722223860989,-500.0,0.00016228,2]
[333514713,1722223861002,-500.0,0.00016229,2]
[333514714,1722223861012,-509.82689219,0.00016229,2]
[333514715,1722223861021,-500.0,0.00016229,2]
[333514716,1722223861030,-504.20192374,0.00016229,2]
[333514717,1722223861039,-175.9967192,0.00016229,2]
[333514718,1722223861049,-500.0,0.00016229,2]
[333514719,1722223861058,-500.0,0.00016229,2]
[333514720,1722223861068,-500.0,0.00016229,2]
[333514721,1722223861078,-500.0,0.00016229,2]
[333514722,1722223861087,-421.2219549,0.00016229,2]
[333514723,1722223861097,-310.46451421,0.00016229,2]
[333514724,1722223861106,-327.04,0.00016229,2]
[333514725,1722223861116,-500.0,0.00016229,2]
[333514726,1722223861126,-355.6,0.00016229,2]
[333514727,1722223861135,-500.0,0.00016229,2]
[333514728,1722223861145,-523.64660741,0.00016229,2]
[333514729,1722223861155,-500.0,0.00016229,2]
[333514730,1722223861169,-334.96977012,0.00016229,2]
[333514731,1722223861178,-633.1412792,0.00016229,2]
[333514732,1722223861188,-534.93,0.00016229,2]
[333514733,1722223861198,-500.0,0.00016229,2]
[333514734,1722223861210,-500.0,0.00016229,2]
[333514735,1722223861220,-500.0,0.00016229,2]
[333514736,1722223861230,-2389.55,0.00016336,2]
[333514737,1722223861242,-500.0,0.00016493,2]
[333514738,1722223861254,-500.0,0.00016502,2]
[333514739,1722223861264,-209.17,0.00016502,2]
[333514740,1722223861274,-500.0,0.00016502,2]
[333514741,1722223861284,-264.99281832,0.00016502,2]
[333514742,1722223861294,-500.0,0.00016502,2]
[333514743,1722223861304,-403.01957884,0.00016502,2]
[333514744,1722223861314,-510.94252295,0.00016502,2]
[333514745,1722223861323,-352.67384343,0.00016502,2]
[333514746,1722223861333,-500.0,0.00016502,2]
[333514747,1722223861343,-500.0,0.00016502,2]
[333514748,1722223861355,-185.5,0.00016502,2]
[333514749,1722223861365,-500.0,0.00016502,2]
[333514750,1722223861374,-500.0,0.00016502,2]
[333514751,1722223861384,-500.0,0.00016502,2]
[333514752,1722223861394,-409.65522624,0.00016502,2]
[333514753,1722223861405,-500.0,0.00016502,2]
[333514754,1722223861416,-500.0,0.00016502,2]
[333514755,1722223861428,-500.0,0.00016502,2]
[333514756,1722223861440,-500.0,0.00016502,2]
[333514757,1722223861449,-364.0,0.00016502,2]
[333514758,1722223861458,-500.0,0.00016502,2]
[333514759,1722223861468,-505.7544177,0.00016502,2]
[333514760,1722223861477,-500.0,0.00016502,2]
[333514761,1722223861486,-500.0,0.00016502,2]
[333514762,1722223861496,-500.0,0.00016502,2]
[333514763,1722223861505,-500.0,0.00016502,2]
[333514764,1722223861515,-677.39,0.00016502,2]
[333514765,1722223861524,-500.0,0.00016502,2]
[333514766,1722223861534,-596.8,0.00016502,2]
[333514767,1722223861544,-500.0,0.00016502,2]
[333514768,1722223861554,-500.0,0.00016502,2]
[333514769,1722223861563,-713.0,0.00016502,2]
[333514770,1722223861573,-500.0,0.00016502,2]
[333514771,1722223861583,-521.03,0.00016502,2]
[333514772,1722223861593,-500.0,0.00016502,2]
[333514773,1722223861602,-500.0,0.00016502,2]
[333514774,1722223861613,-500.0,0.00016502,2]
[333514775,1722223861622,-8758.31,0.00016502,2]
[333514776,1722223861631,-2022.79,0.00016502,2]
[333514777,1722223861641,-2552.05,0.00016502,2]
[333514778,1722223861650,-500.0,0.00016502,2]
[333514779,1722223861659,-446.84,0.00016502,2]
[333514780,1722223861669,-996.33,0.00016502,2]
[333514781,1722223861678,-186.77593733,0.00016502,2]
[333514782,1722223861688,-500.0,0.00016502,2]
[333514783,1722223861697,-539.42,0.00016502,2]
[333514784,1722223861707,-573.35,0.00016502,2]
[333514785,1722223861717,-932.0,0.00016502,2]
[333514786,1722223861726,-500.0,0.00016502,2]
[333514787,1722223861735,-500.0,0.00016502,2]
[333514788,1722223861745,-500.0,0.00016502,2]
[333514789,1722223861756,-1432.9,0.00016502,2]
[333514790,1722223861766,-500.0,0.00016502,2]
[333514791,1722223861776,-275.84,0.00016502,2]
[333514792,1722223861786,-500.0,0.00016502,2]
[333514793,1722223861795,-427.3,0.00016502,2]
[333514794,1722223861805,-500.0,0.00016502,2]
[333514795,1722223861815,-281.37,0.00016502,2]
[333514796,1722223861825,-500.0,0.00016502,2]
[333514797,1722223861835,-500.0,0.00016502,2]
[333514798,1722223861845,-512.74,0.00016502,2]
[333514799,1722223861855,-500.0,0.00016502,2]
[333514800,1722223861865,-500.0,0.00016502,2]
[333514801,1722223861874,-500.0,0.00016502,2]
[333514802,1722223861883,-500.0,0.00016503,2]
[333514803,1722223861892,-347.97835872,0.00016503,2]
[333514804,1722223861902,-500.0,0.00016503,2]
[333514805,1722223861911,-586.74,0.00016503,2]
[333514806,1722223861921,-500.0,0.00016503,2]
[333514807,1722223861930,-559.78,0.00016503,2]
[333514808,1722223861940,-534.93,0.00016503,2]
[333514809,1722223861949,-500.0,0.00016503,2]
[333514810,1722223861959,-598.63,0.00016503,2]
[333514811,1722223861968,-500.0,0.00016503,2]
[333514812,1722223861978,-277.12718194,0.00016532,2]
[333514813,1722223861987,-500.0,0.00016776,2]
[333514814,1722223861997,-500.0,0.00016776,2]
[333514815,1722223862007,-360.19,0.00016776,2]
[333514816,1722223862017,-500.0,0.00016776,2]
[333514817,1722223862026,-500.0,0.00016776,2]
[333514818,1722223862036,-500.0,0.00016776,2]
[333514819,1722223862045,-500.0,0.00016776,2]
[333514820,1722223862054,-500.0,0.00016776,2]
[333514821,1722223862064,-488.73,0.00016776,2]
[333514822,1722223862074,-301.50697533,0.00016776,2]
[333514823,1722223862083,-500.0,0.00016776,2]
[333514824,1722223862092,-541.23,0.00016776,2]
[333514825,1722223862103,-294.93,0.00016776,2]
[333514826,1722223862113,-677.39,0.00016776,2]
[333514827,1722223862123,-500.0,0.00016776,2]
[333514828,1722223862132,-596.8,0.00016776,2]
[333514829,1722223862141,-500.0,0.00016776,2]
[333514830,1722223862151,-500.0,0.00016776,2]
[333514831,1722223862164,-713.0,0.00016776,2]
[333514832,1722223862241,-500.0,0.00016776,2]
[333514833,1722223862253,-521.03,0.00016776,2]
[333514834,1722223862265,-500.0,0.00016776,2]
[333514835,1722223862275,-500.0,0.00016776,2]
[333514836,1722223862287,-500.0,0.00016776,2]
[333514837,1722223862298,-8758.31,0.00016776,2]
[333514838,1722223862308,-2022.79,0.00016776,2]
[333514839,1722223862320,-2552.05,0.00016776,2]
[333514840,1722223862331,-500.0,0.00016776,2]
[333514841,1722223862341,-996.33,0.00016776,2]
[333514842,1722223862352,-500.0,0.00016776,2]
[333514843,1722223862364,-539.42,0.00016776,2]
[333514844,1722223862373,-573.35,0.00016776,2]
[333514845,1722223862383,-932.0,0.00016776,2]
[333514846,1722223862394,-500.0,0.00016776,2]
[333514847,1722223862404,-500.0,0.00016776,2]
[333514848,1722223862414,-500.0,0.00016776,2]
[333514849,1722223862424,-1432.9,0.00016776,2]
[333514850,1722223862433,-500.0,0.00016776,2]
[333514851,1722223862442,-500.0,0.00016776,2]
[333514852,1722223862452,-249.8,0.00016776,2]
[333514853,1722223862464,-617.3046986,0.00016776,2]
[333514854,1722223862474,-379.92,0.00016776,2]
[333514855,1722223862484,-2389.55,0.00016776,2]
[333514856,1722223862494,-2389.55,0.00016776,2]
[333514857,1722223862505,-2389.55,0.00016776,2]
[333514858,1722223862515,-2389.55,0.00016776,2]
[333514859,1722223862525,-2389.7630711,0.00016776,2]
[333514860,1722223862534,-512.74,0.00016776,2]
[333514861,1722223862544,-500.0,0.00016776,2]
[333514862,1722223862553,-185.18,0.00016776,2]
[333514863,1722223862562,-500.0,0.00016776,2]
[333514864,1722223862572,-621.14434338,0.00016777,2]
[333514865,1722223862581,-500.0,0.00016777,2]
[333514866,1722223862590,-500.0,0.00016777,2]
[333514867,1722223862599,-534.93,0.00016777,2]
[333514868,1722223862608,-500.0,0.00016777,2]
[333514869,1722223862618,-527.2,0.00016777,2]
[333514870,1722223862628,-4281.955,0.00016961,2]
[333514871,1722223862637,-150.112233,0.00017,2]
[333514872,1722223862647,-154.55950541,0.00017019,2]
[333514873,1722223862657,-508.342,0.0001703,2]
[333514874,1722223862666,-500.0,0.0001705,2]
[333514875,1722223862675,-280.32,0.0001705,2]
[333514876,1722223862686,-500.0,0.0001705,2]
[333514877,1722223862696,-500.0,0.0001705,2]
[333514878,1722223862708,-562.77,0.0001705,2]
[333514879,1722223862719,-500.0,0.0001705,2]
[333514880,1722223862730,-500.0,0.0001705,2]
[333514881,1722223862740,-500.0,0.0001705,2]
[333514882,1722223862751,-677.39,0.0001705,2]
[333514883,1722223862761,-500.0,0.0001705,2]
[333514884,1722223862770,-596.8,0.0001705,2]
[333514885,1722223862779,-500.0,0.0001705,2]
[333514886,1722223862789,-500.0,0.0001705,2]
[333514887,1722223862799,-713.0,0.0001705,2]
[333514888,1722223862809,-500.0,0.0001705,2]
[333514889,1722223862819,-521.03,0.0001705,2]
[333514890,1722223862828,-500.0,0.0001705,2]
[333514891,1722223862838,-500.0,0.0001705,2]
[333514892,1722223862849,-500.0,0.0001705,2]
[333514893,1722223862859,-8758.31,0.0001705,2]
[333514894,1722223862869,-2022.79,0.0001705,2]
[333514895,1722223862879,-2552.05,0.0001705,2]
[333514896,1722223862889,-500.0,0.0001705,2]
[333514897,1722223862898,-996.33,0.0001705,2]
[333514898,1722223862908,-500.0,0.0001705,2]
[333514899,1722223862917,-539.42,0.0001705,2]
[333514900,1722223862926,-573.35,0.0001705,2]
[333514901,1722223862935,-932.0,0.0001705,2]
[333514902,1722223862944,-500.0,0.0001705,2]
[333514903,1722223862953,-500.0,0.0001705,2]
[333514904,1722223862962,-500.0,0.0001705,2]
[333514905,1722223862972,-1432.9,0.0001705,2]
[333514906,1722223862981,-500.0,0.0001705,2]
[333514907,1722223862990,-634.46,0.0001705,2]
[333514908,1722223863000,-512.74,0.0001705,2]
[333514909,1722223863009,-500.0,0.0001705,2]
[333514910,1722223863019,-500.0,0.0001705,2]
[333514911,1722223863031,-1412.643,0.0001705,2]
[333514912,1722223863040,-151.089,0.0001705,2]
[333514913,1722223863050,-500.0,0.00017051,2]
[333514914,1722223863060,-500.0,0.00017051,2]
[333514915,1722223863069,-534.93,0.00017051,2]
[333514916,1722223863078,-500.0,0.00017051,2]
[333514917,1722223863087,-378.54875589,0.0001706,2]
[333514918,1722223863097,-455.6744567,0.00017319,2]
[333514919,1722223863107,-282.06,0.00017324,2]
[333514920,1722223863117,-460.37200138,0.00017324,2]
[333514921,1722223863127,-616.70435902,0.00017324,2]
[333514922,1722223863137,-500.0,0.00017324,2]
[333514923,1722223863147,-500.0,0.00017324,2]
[333514924,1722223863158,-500.0,0.00017324,2]
[333514925,1722223863171,-677.39,0.00017324,2]
[333514926,1722223863181,-500.0,0.00017324,2]
[333514927,1722223863192,-596.8,0.00017324,2]
[333514928,1722223863203,-500.0,0.00017324,2]
[333514929,1722223863214,-500.0,0.00017324,2]
[333514930,1722223863224,-713.0,0.00017324,2]
[333514931,1722223863236,-500.0,0.00017324,2]
[333514932,1722223863246,-521.03,0.00017324,2]
[333514933,1722223863256,-500.0,0.00017324,2]
[333514934,1722223863265,-500.0,0.00017324,2]
[333514935,1722223863275,-500.0,0.00017324,2]
[333514936,1722223863284,-8758.31,0.00017324,2]
[333514937,1722223863294,-2022.79,0.00017324,2]
[333514938,1722223863304,-2552.05,0.00017324,2]
[333514939,1722223863313,-500.0,0.00017324,2]
[333514940,1722223863323,-996.33,0.00017324,2]
[333514941,1722223863333,-642.95442648,0.00017324,2]
[333514942,1722223863342,-539.42,0.00017324,2]
[333514943,1722223863352,-573.35,0.00017324,2]
[333514944,1722223863360,-932.0,0.00017324,2]
[333514945,1722223863370,-500.0,0.00017324,2]
[333514946,1722223863381,-500.0,0.00017324,2]
[333514947,1722223863391,-268.58,0.00017324,2]
[333514948,1722223863401,-1432.9,0.00017324,2]
[333514949,1722223863412,-532.1,0.00017324,2]
[333514950,1722223863425,-512.74,0.00017324,2]
[333514951,1722223863435,-500.0,0.00017324,2]
[333514952,1722223863444,-500.0,0.00017324,2]
[333514953,1722223863454,-500.0,0.00017325,2]
[333514954,1722223863463,-500.0,0.00017325,2]
[333514955,1722223863473,-534.93,0.00017325,2]
[333514956,1722223863483,-500.0,0.00017325,2]
[333514957,1722223863493,-30000.0,0.00017379,2]
[333514958,1722223863504,-30000.0,0.00017379,2]
[333514959,1722223863515,-441.21146606,0.00017382,2]
[333514960,1722223863525,-500.0,0.00017598,2]
[333514961,1722223863534,-500.0,0.00017598,2]
[333514962,1722223863544,-539.97,0.00017598,2]
[333514963,1722223863556,-677.39,0.00017598,2]
[333514964,1722223863567,-500.0,0.00017598,2]
[333514965,1722223863577,-596.8,0.00017598,2]
[333514966,1722223863587,-500.0,0.00017598,2]
[333514967,1722223863597,-500.0,0.00017598,2]
[333514968,1722223863606,-713.0,0.00017598,2]
[333514969,1722223863616,-500.0,0.00017598,2]
[333514970,1722223863626,-521.03,0.00017598,2]
[333514971,1722223863636,-500.0,0.00017598,2]
[333514972,1722223863646,-500.0,0.00017598,2]
[333514973,1722223863656,-500.0,0.00017598,2]
[333514974,1722223863666,-8758.31,0.00017598,2]
[333514975,1722223863675,-2022.79,0.00017598,2]
[333514976,1722223863685,-2552.05,0.00017598,2]
[333514977,1722223863694,-500.0,0.00017598,2]
[333514978,1722223863704,-996.33,0.00017598,2]
[333514979,1722223863714,-539.42,0.00017598,2]
[333514980,1722223863723,-573.35,0.00017598,2]
[333514981,1722223863793,-932.0,0.00017598,2]
[333514982,1722223863803,-500.0,0.00017598,2]
[333514983,1722223863813,-190.71145395,0.00017598,2]
[333514984,1722223863824,-1432.9,0.00017598,2]
[333514985,1722223863834,-512.74,0.00017598,2]
[333514986,1722223863844,-500.0,0.00017598,2]
[333514987,1722223863855,-500.0,0.00017598,2]
[333514988,1722223863864,-500.0,0.00017599,2]
[333514989,1722223863873,-500.0,0.00017599,2]
[333514990,1722223863883,-534.93,0.00017599,2]
[333514991,1722223863893,-500.0,0.00017599,2]
[333514992,1722223863902,-500.0,0.00017872,2]
[333514993,1722223863912,-500.0,0.00017872,2]
[333514994,1722223863922,-677.39,0.00017872,2]
[333514995,1722223863932,-500.0,0.00017872,2]
[333514996,1722223863942,-596.8,0.00017872,2]
[333514997,1722223863951,-500.0,0.00017872,2]
[333514998,1722223863961,-500.0,0.00017872,2]
[333514999,1722223863971,-713.0,0.00017872,2]
[333515000,1722223863980,-500.0,0.00017872,2]
[333515001,1722223863990,-521.03,0.00017872,2]
[333515002,1722223864000,-500.0,0.00017872,2]
[333515003,1722223864009,-500.0,0.00017872,2]
[333515004,1722223864019,-500.0,0.00017872,2]
[333515005,1722223864029,-8758.31,0.00017872,2]
[333515006,1722223864039,-2022.79,0.00017872,2]
[333515007,1722223864049,-2552.05,0.00017872,2]
[333515008,1722223864059,-500.0,0.00017872,2]
[333515009,1722223864069,-996.33,0.00017872,2]
[333515010,1722223864079,-539.42,0.00017872,2]
[333515011,1722223864088,-573.35,0.00017872,2]
[333515012,1722223864098,-932.0,0.00017872,2]
[333515013,1722223864108,-500.0,0.00017872,2]
[333515014,1722223864118,-1432.9,0.00017872,2]
[333515015,1722223864128,-512.74,0.00017872,2]
[333515016,1722223864137,-212.90916849,0.00017872,2]
[333515017,1722223864147,-500.0,0.00017872,2]
[333515018,1722223864158,-500.0,0.00017873,2]
[333515019,1722223864170,-283.11762805,0.00017873,2]
[333515020,1722223864180,-534.93,0.00017873,2]
[333515021,1722223864190,-500.0,0.00017873,2]
[333515022,1722223864200,-154.55950541,0.00018,2]
[333515023,1722223864209,-500.0,0.00018146,2]
[333515024,1722223864219,-500.0,0.00018146,2]
[333515025,1722223864229,-677.39,0.00018146,2]
[333515026,1722223864240,-500.0,0.00018146,2]
[333515027,1722223864250,-596.8,0.00018146,2]
[333515028,1722223864260,-500.0,0.00018146,2]
[333515029,1722223864270,-500.0,0.00018146,2]
[333515030,1722223864279,-713.0,0.00018146,2]
[333515031,1722223864289,-500.0,0.00018146,2]
[333515032,1722223864298,-521.03,0.00018146,2]
[333515033,1722223864307,-500.0,0.00018146,2]
[333515034,1722223864317,-500.0,0.00018146,2]
[333515035,1722223864327,-500.0,0.00018146,2]
[333515036,1722223864337,-8758.31,0.00018146,2]
[333515037,1722223864347,-2022.79,0.00018146,2]
[333515038,1722223864357,-500.0,0.00018146,2]
[333515039,1722223864367,-2552.05,0.00018146,2]
[333515040,1722223864376,-996.33,0.00018146,2]
[333515041,1722223864386,-539.42,0.00018146,2]
[333515042,1722223864395,-573.35,0.00018146,2]
[333515043,1722223864405,-932.0,0.00018146,2]
[333515044,1722223864414,-500.0,0.00018146,2]
[333515045,1722223864424,-1432.9,0.00018146,2]
[333515046,1722223864433,-512.74,0.00018146,2]
[333515047,1722223864443,-500.0,0.00018146,2]
[333515048,1722223864453,-483.9635603,0.00018147,2]
[333515049,1722223864462,-534.93,0.00018147,2]
[333515050,1722223864472,-500.0,0.00018147,2]
[333515051,1722223864481,-2846.40553147,0.00018302,2]
[333515052,1722223864490,-150.112233,0.000184,2]
[333515053,1722223864500,-434.98706072,0.0001842,2]
[333515054,1722223864510,-500.0,0.0001842,2]
[333515055,1722223864520,-677.39,0.0001842,2]
[333515056,1722223864529,-500.0,0.0001842,2]
[333515057,1722223864540,-596.8,0.0001842,2]
[333515058,1722223864550,-313.75,0.0001842,2]
[333515059,1722223864559,-500.0,0.0001842,2]
[333515060,1722223864569,-500.0,0.0001842,2]
[333515061,1722223864578,-713.0,0.0001842,2]
[333515062,1722223864588,-521.03,0.0001842,2]
[333515063,1722223864597,-500.0,0.0001842,2]
[333515064,1722223864606,-343.75788859,0.0001842,2]
[333515065,1722223864617,-500.0,0.0001842,2]
[333515066,1722223864627,-8758.31,0.0001842,2]
[333515067,1722223864637,-2022.79,0.0001842,2]
[333515068,1722223864646,-500.0,0.0001842,2]
[333515069,1722223864656,-2552.05,0.0001842,2]
[333515070,1722223864666,-996.33,0.0001842,2]
[333515071,1722223864676,-539.42,0.0001842,2]
[333515072,1722223864685,-573.35,0.0001842,2]
[333515073,1722223864695,-932.0,0.0001842,2]
[333515074,1722223864704,-500.0,0.0001842,2]
[333515075,1722223864713,-1432.9,0.0001842,2]
[333515076,1722223864722,-512.74,0.0001842,2]
[333515077,1722223864732,-500.0,0.0001842,2]
[333515078,1722223864742,-534.93,0.00018421,2]
[333515079,1722223864752,-500.0,0.00018421,2]
[333515080,1722223864763,-378.54875589,0.00018539,2]
[333515081,1722223864772,-245.86890198,0.00018587,2]
[333515082,1722223864782,-951.37397172,0.00018587,2]
[333515083,1722223864792,-319.20071859,0.00018629,2]
[333515084,1722223864802,-500.0,0.00018694,2]
[333515085,1722223864811,-677.39,0.00018694,2]
[333515086,1722223864820,-500.0,0.00018694,2]
[333515087,1722223864830,-596.8,0.00018694,2]
[333515088,1722223864840,-500.0,0.00018694,2]
[333515089,1722223864849,-500.0,0.00018694,2]
[333515090,1722223864858,-713.0,0.00018694,2]
[333515091,1722223864867,-521.03,0.00018694,2]
[333515092,1722223864877,-500.0,0.00018694,2]
[333515093,1722223864886,-175.65373293,0.00018694,2]
[333515094,1722223864896,-8758.31,0.00018694,2]
[333515095,1722223864906,-2022.79,0.00018694,2]
[333515096,1722223864915,-500.0,0.00018694,2]
[333515097,1722223864924,-2552.05,0.00018694,2]
[333515098,1722223864934,-996.33,0.00018694,2]
[333515099,1722223864944,-539.42,0.00018694,2]
[333515100,1722223864954,-573.35,0.00018694,2]
[333515101,1722223864964,-932.0,0.00018694,2]
[333515102,1722223864974,-500.0,0.00018694,2]
[333515103,1722223864983,-1432.9,0.00018694,2]
[333515104,1722223864993,-512.74,0.00018694,2]
[333515105,1722223865004,-500.0,0.00018694,2]
[333515106,1722223865014,-534.93,0.00018695,2]
[333515107,1722223865024,-500.0,0.00018695,2]
[333515108,1722223865034,-10055.82699575,0.000188,2]
[333515109,1722223865045,-500.0,0.00018968,2]
[333515110,1722223865054,-677.39,0.00018968,2]
[333515111,1722223865064,-500.0,0.00018968,2]
[333515112,1722223865074,-596.8,0.00018968,2]
[333515113,1722223865083,-590.70568164,0.00018968,2]
[333515114,1722223865092,-500.0,0.00018968,2]
[333515115,1722223865102,-713.0,0.00018968,2]
[333515116,1722223865111,-521.03,0.00018968,2]
[333515117,1722223865120,-500.0,0.00018968,2]
[333515118,1722223865181,-8758.31,0.00018968,2]
[333515119,1722223865197,-2022.79,0.00018968,2]
[333515120,1722223865207,-500.0,0.00018968,2]
[333515121,1722223865217,-2552.05,0.00018968,2]
[333515122,1722223865227,-996.33,0.00018968,2]
[333515123,1722223865239,-539.42,0.00018968,2]
[333515124,1722223865249,-573.35,0.00018968,2]
[333515125,1722223865259,-932.0,0.00018968,2]
[333515126,1722223865268,-451.00015238,0.00018968,2]